[Event "Titled Tuesday Blitz September 21 2021"]
[White "Okike, David"]
[Black "Kislov, Oleg"]
[WhiteFideId "8500134"]
[BlackFideId "13503774"]
[WhiteElo "2232"]
[BlackElo "2252"]
[Result "0-1"]
[Round "08"]
[TimeControl "180+1"]
[Date "2021.09.21"]
[WhiteClock "0:00:08"]
[BlackClock "0:00:19"]

1. e4 {[%clk 0:00:33]}  e6 {[%clk 0:02:44]} 2. d4 {[%clk 0:00:32]}  d5 {[%clk 0:01:28]} 3. Nc3 {[%clk 0:00:31]}  Nf6 {[%clk 0:00:29]} 4. e5 {[%clk 0:00:31]}  Nfd7 {[%clk 0:00:29]} 5. f4 {[%clk 0:00:30]}  c5 {[%clk 0:00:29]} 6. Nf3 {[%clk 0:00:31]}  Nc6 {[%clk 0:00:30]} 7. Be3 {[%clk 0:00:31]}  a6 {[%clk 0:00:29]} 8. Qd2 {[%clk 0:00:31]}  b5 {[%clk 0:00:30]} 9. a3 {[%clk 0:00:32]}  c4 {[%clk 0:00:29]} 10. f5 {[%clk 0:00:31]}  Nb6 {[%clk 0:00:29]} 11. fxe6 {[%clk 0:00:30]}  Bxe6 {[%clk 0:00:29]} 12. Ne2 {[%clk 0:00:29]}  a5 {[%clk 0:00:28]} 13. Nf4 {[%clk 0:00:29]}  b4 {[%clk 0:00:27]} 14. Nxe6 {[%clk 0:00:27]}  fxe6 {[%clk 0:00:28]} 15. Qf2 {[%clk 0:00:25]}  bxa3 {[%clk 0:00:27]} 16. bxa3 {[%clk 0:00:25]}  Be7 {[%clk 0:00:28]} 17. Nd2 {[%clk 0:00:20]}  Rf8 {[%clk 0:00:24]} 18. Qg3 {[%clk 0:00:19]}  Bh4 {[%clk 0:00:24]} 19. Bf2 {[%clk 0:00:18]}  Bxg3 {[%clk 0:00:24]} 20. hxg3 {[%clk 0:00:18]}  h6 {[%clk 0:00:23]} 21. Nf3 {[%clk 0:00:18]}  Na4 {[%clk 0:00:21]} 22. Be2 {[%clk 0:00:18]}  Rb8 {[%clk 0:00:20]} 23. Bd1 {[%clk 0:00:18]}  Nb2 {[%clk 0:00:19]} 24. O-O {[%clk 0:00:18]}  Nxd1 {[%clk 0:00:19]} 25. Rfxd1 {[%clk 0:00:17]}  Rb2 {[%clk 0:00:19]} 26. Rdc1 {[%clk 0:00:18]}  Qb6 {[%clk 0:00:19]} 27. a4 {[%clk 0:00:14]}  Kd7 {[%clk 0:00:19]} 28. c3 {[%clk 0:00:14]}  g5 {[%clk 0:00:19]} 29. g4 {[%clk 0:00:14]}  Rxf3 {[%clk 0:00:18]} 30. gxf3 {[%clk 0:00:14]}  Nxe5 {[%clk 0:00:18]} 31. Kg2 {[%clk 0:00:10]}  Nd3 {[%clk 0:00:19]} 32. Rf1 {[%clk 0:00:09]}  Nxf2 {[%clk 0:00:19]} 33. Rxf2 {[%clk 0:00:10]}  Rxf2+ {[%clk 0:00:19]} 34. Kg3 {[%clk 0:00:10]}  Qb2 {[%clk 0:00:20]} 35. Rg1 {[%clk 0:00:10]}  Rh2 {[%clk 0:00:19]} 36. f4 {[%clk 0:00:08]}  Qf2# {[%clk 0:00:19]} 0-1


[Site "https://www.chess.com"]

[Event "Titled Tuesday Blitz September 21 2021"]
[White "Schrik, Rachid"]
[Black "Janaszak, Dawid"]
[WhiteFideId "1009818"]
[BlackFideId "1119206"]
[WhiteElo "2070"]
[BlackElo "2283"]
[Result "1/2-1/2"]
[Round "08"]
[TimeControl "180+1"]
[Date "2021.09.21"]
[WhiteClock "0:00:12"]
[BlackClock "0:00:09"]

1. d4 {[%clk 0:02:59]}  Nf6 {[%clk 0:02:36]} 2. c4 {[%clk 0:02:59]}  c5 {[%clk 0:02:06]} 3. d5 {[%clk 0:02:53]}  b5 {[%clk 0:01:50]} 4. cxb5 {[%clk 0:02:53]}  a6 {[%clk 0:01:35]} 5. f3 {[%clk 0:02:53]}  d6 {[%clk 0:01:24]} 6. e4 {[%clk 0:02:53]}  axb5 {[%clk 0:01:18]} 7. Bxb5+ {[%clk 0:02:52]}  Bd7 {[%clk 0:01:14]} 8. Nc3 {[%clk 0:02:50]}  g6 {[%clk 0:01:12]} 9. Nge2 {[%clk 0:02:50]}  Bg7 {[%clk 0:01:12]} 10. O-O {[%clk 0:02:50]}  O-O {[%clk 0:01:12]} 11. Be3 {[%clk 0:02:49]}  Bxb5 {[%clk 0:01:12]} 12. Nxb5 {[%clk 0:02:49]}  Qb6 {[%clk 0:01:12]} 13. Nec3 {[%clk 0:02:49]}  Na6 {[%clk 0:01:13]} 14. Qd2 {[%clk 0:02:45]}  Rfb8 {[%clk 0:01:11]} 15. Bh6 {[%clk 0:02:39]}  Bh8 {[%clk 0:01:10]} 16. Kh1 {[%clk 0:02:21]}  Nd7 {[%clk 0:01:08]} 17. f4 {[%clk 0:02:15]}  Nc7 {[%clk 0:01:07]} 18. Nxc7 {[%clk 0:02:06]}  Qxc7 {[%clk 0:01:08]} 19. e5 {[%clk 0:01:56]}  dxe5 {[%clk 0:01:02]} 20. f5 {[%clk 0:01:56]}  Nf6 {[%clk 0:01:01]} 21. fxg6 {[%clk 0:01:56]}  hxg6 {[%clk 0:01:01]} 22. Qf2 {[%clk 0:01:43]}  Rb4 {[%clk 0:00:57]} 23. Rae1 {[%clk 0:01:38]}  Rab8 {[%clk 0:00:54]} 24. b3 {[%clk 0:01:36]}  Rd4 {[%clk 0:00:53]} 25. Ne4 {[%clk 0:01:32]}  Qd8 {[%clk 0:00:33]} 26. d6 {[%clk 0:01:18]}  Rxd6 {[%clk 0:00:29]} 27. Nxd6 {[%clk 0:01:11]}  Qxd6 {[%clk 0:00:30]} 28. Rd1 {[%clk 0:01:11]}  Qe6 {[%clk 0:00:29]} 29. Qxc5 {[%clk 0:01:05]}  Ng4 {[%clk 0:00:27]} 30. Be3 {[%clk 0:01:04]}  Rc8 {[%clk 0:00:25]} 31. Qb6 {[%clk 0:01:00]}  Nxe3 {[%clk 0:00:19]} 32. Qxe3 {[%clk 0:00:58]}  f5 {[%clk 0:00:20]} 33. g4 {[%clk 0:00:54]}  e4 {[%clk 0:00:20]} 34. gxf5 {[%clk 0:00:54]}  gxf5 {[%clk 0:00:20]} 35. Rg1+ {[%clk 0:00:54]}  Bg7 {[%clk 0:00:20]} 36. Rg5 {[%clk 0:00:45]}  Rf8 {[%clk 0:00:19]} 37. Rdg1 {[%clk 0:00:44]}  Rf7 {[%clk 0:00:20]} 38. Qg3 {[%clk 0:00:38]}  Qf6 {[%clk 0:00:19]} 39. Rg6 {[%clk 0:00:31]}  Qb2 {[%clk 0:00:16]} 40. Qb8+ {[%clk 0:00:28]}  Kh7 {[%clk 0:00:14]} 41. Qg3 {[%clk 0:00:22]}  f4 {[%clk 0:00:10]} 42. Qh3+ {[%clk 0:00:12]}  Kg8 {[%clk 0:00:11]} 43. Qe6 {[%clk 0:00:13]}  f3 {[%clk 0:00:06]} 44. Rxg7+ {[%clk 0:00:12]}  Qxg7 {[%clk 0:00:07]} 45. Rxg7+ {[%clk 0:00:12]}  Kxg7 {[%clk 0:00:08]} 46. Qxe4 {[%clk 0:00:11]}  f2 {[%clk 0:00:08]} 47. Qg4+ {[%clk 0:00:11]}  Kf8 {[%clk 0:00:08]} 48. Qc8+ {[%clk 0:00:12]}  Kg7 {[%clk 0:00:08]} 49. Qg4+ {[%clk 0:00:12]}  Kf8 {[%clk 0:00:09]} 50. Qc8+ {[%clk 0:00:12]}  Kg7 {[%clk 0:00:09]} 51. Qg4+ {[%clk 0:00:12]} 1/2-1/2


[Site "https://www.chess.com"]

[Event "Titled Tuesday Blitz September 21 2021"]
[White "Shuvalov, Evgenij"]
[Black "Molina, Roberto Junio Brito"]
[WhiteFideId "4187237"]
[BlackFideId "2109450"]
[WhiteElo "2129"]
[BlackElo "2402"]
[Result "1-0"]
[Round "08"]
[TimeControl "180+1"]
[Date "2021.09.21"]
[WhiteClock "0:01:12"]
[BlackClock "0:00:03"]

1. Nf3 {[%clk 0:02:46]}  d5 {[%clk 0:00:46]} 2. c4 {[%clk 0:02:47]}  d4 {[%clk 0:00:36]} 3. e3 {[%clk 0:02:48]}  c5 {[%clk 0:00:34]} 4. exd4 {[%clk 0:02:48]}  cxd4 {[%clk 0:00:35]} 5. d3 {[%clk 0:02:49]}  Nc6 {[%clk 0:00:35]} 6. Be2 {[%clk 0:02:49]}  e5 {[%clk 0:00:35]} 7. O-O {[%clk 0:02:50]}  Bd6 {[%clk 0:00:35]} 8. Re1 {[%clk 0:02:38]}  Nf6 {[%clk 0:00:33]} 9. Bf1 {[%clk 0:02:37]}  O-O {[%clk 0:00:33]} 10. a3 {[%clk 0:02:33]}  a5 {[%clk 0:00:33]} 11. Bg5 {[%clk 0:02:32]}  Re8 {[%clk 0:00:32]} 12. Nbd2 {[%clk 0:02:31]}  h6 {[%clk 0:00:32]} 13. Bxf6 {[%clk 0:02:30]}  Qxf6 {[%clk 0:00:33]} 14. Ne4 {[%clk 0:02:24]}  Qd8 {[%clk 0:00:33]} 15. c5 {[%clk 0:02:22]}  Bf8 {[%clk 0:00:32]} 16. Qc2 {[%clk 0:02:10]}  Be6 {[%clk 0:00:32]} 17. b3 {[%clk 0:02:03]}  Bd5 {[%clk 0:00:32]} 18. Rab1 {[%clk 0:01:57]}  f5 {[%clk 0:00:32]} 19. Ned2 {[%clk 0:01:57]}  Qf6 {[%clk 0:00:28]} 20. b4 {[%clk 0:01:54]}  axb4 {[%clk 0:00:29]} 21. axb4 {[%clk 0:01:54]}  Ra2 {[%clk 0:00:28]} 22. Qc1 {[%clk 0:01:51]}  e4 {[%clk 0:00:24]} 23. dxe4 {[%clk 0:01:50]}  fxe4 {[%clk 0:00:25]} 24. Nxe4 {[%clk 0:01:41]}  Rxe4 {[%clk 0:00:23]} 25. Rxe4 {[%clk 0:01:41]}  Bxe4 {[%clk 0:00:19]} 26. Bc4+ {[%clk 0:01:40]}  Kh8 {[%clk 0:00:18]} 27. Bxa2 {[%clk 0:01:41]}  Bxb1 {[%clk 0:00:18]} 28. Qxb1 {[%clk 0:01:39]}  Qf4 {[%clk 0:00:13]} 29. h3 {[%clk 0:01:31]}  Ne5 {[%clk 0:00:09]} 30. Nxe5 {[%clk 0:01:18]}  Qxe5 {[%clk 0:00:10]} 31. Qb3 {[%clk 0:01:18]}  Qe1+ {[%clk 0:00:08]} 32. Kh2 {[%clk 0:01:18]}  Qe5+ {[%clk 0:00:08]} 33. g3 {[%clk 0:01:18]}  Kh7 {[%clk 0:00:04]} 34. Qg8+ {[%clk 0:01:17]}  Kg6 {[%clk 0:00:04]} 35. Bb1+ {[%clk 0:01:12]}  Qf5 {[%clk 0:00:03]} 36. Bxf5+ {[%clk 0:01:12]} 1-0


[Site "https://www.chess.com"]

[Event "Titled Tuesday Blitz September 21 2021"]
[White "Stoyanov, Tsvetan"]
[Black "Garcia Garcia, Alejandro"]
[WhiteFideId "2917173"]
[BlackFideId "3516334"]
[WhiteElo "2191"]
[BlackElo "2131"]
[Result "1/2-1/2"]
[Round "08"]
[TimeControl "180+1"]
[Date "2021.09.21"]
[WhiteClock "0:00:18"]
[BlackClock "0:01:34"]

1. e3 {[%clk 0:00:33]}  Nf6 {[%clk 0:01:59]} 2. Nf3 {[%clk 0:00:32]}  g6 {[%clk 0:02:00]} 3. d4 {[%clk 0:00:33]}  Bg7 {[%clk 0:02:01]} 4. Bd3 {[%clk 0:00:33]}  d6 {[%clk 0:02:01]} 5. O-O {[%clk 0:00:34]}  O-O {[%clk 0:02:02]} 6. c4 {[%clk 0:00:35]}  c5 {[%clk 0:02:03]} 7. Nc3 {[%clk 0:00:36]}  cxd4 {[%clk 0:02:03]} 8. exd4 {[%clk 0:00:36]}  Nc6 {[%clk 0:02:04]} 9. h3 {[%clk 0:00:36]}  e5 {[%clk 0:02:04]} 10. d5 {[%clk 0:00:36]}  Ne7 {[%clk 0:02:03]} 11. Re1 {[%clk 0:00:36]}  Nh5 {[%clk 0:02:03]} 12. c5 {[%clk 0:00:36]}  dxc5 {[%clk 0:02:02]} 13. Nxe5 {[%clk 0:00:36]}  Nxd5 {[%clk 0:02:01]} 14. Nxd5 {[%clk 0:00:35]}  Qxd5 {[%clk 0:02:01]} 15. Ng4 {[%clk 0:00:35]}  Bxg4 {[%clk 0:01:58]} 16. hxg4 {[%clk 0:00:36]}  Nf6 {[%clk 0:01:58]} 17. g5 {[%clk 0:00:35]}  Nd7 {[%clk 0:01:55]} 18. Be4 {[%clk 0:00:34]}  Qxd1 {[%clk 0:01:52]} 19. Rxd1 {[%clk 0:00:35]}  Rad8 {[%clk 0:01:45]} 20. Bxb7 {[%clk 0:00:34]}  Ne5 {[%clk 0:01:45]} 21. Be3 {[%clk 0:00:29]}  Nd3 {[%clk 0:01:45]} 22. Be4 {[%clk 0:00:27]}  Nxb2 {[%clk 0:01:40]} 23. Rxd8 {[%clk 0:00:26]}  Rxd8 {[%clk 0:01:41]} 24. Bxc5 {[%clk 0:00:20]}  Na4 {[%clk 0:01:39]} 25. Rc1 {[%clk 0:00:19]}  Bb2 {[%clk 0:01:32]} 26. Rc2 {[%clk 0:00:19]}  Rd1+ {[%clk 0:01:30]} 27. Kh2 {[%clk 0:00:19]}  Be5+ {[%clk 0:01:31]} 28. g3 {[%clk 0:00:19]}  Nxc5 {[%clk 0:01:31]} 29. Rxc5 {[%clk 0:00:19]}  Bd6 {[%clk 0:01:30]} 30. Ra5 {[%clk 0:00:18]}  Rd4 {[%clk 0:01:28]} 31. Bf3 {[%clk 0:00:17]}  Rd2 {[%clk 0:01:28]} 32. Kg2 {[%clk 0:00:17]}  Bc7 {[%clk 0:01:28]} 33. Rxa7 {[%clk 0:00:15]}  Rxf2+ {[%clk 0:01:28]} 34. Kxf2 {[%clk 0:00:14]}  Bb6+ {[%clk 0:01:28]} 35. Ke2 {[%clk 0:00:15]}  Bxa7 {[%clk 0:01:29]} 36. Kd3 {[%clk 0:00:15]}  Bb6 {[%clk 0:01:29]} 37. a4 {[%clk 0:00:15]}  Bd8 {[%clk 0:01:30]} 38. Kc4 {[%clk 0:00:13]}  Bxg5 {[%clk 0:01:30]} 39. a5 {[%clk 0:00:14]}  Be3 {[%clk 0:01:30]} 40. a6 {[%clk 0:00:14]}  h5 {[%clk 0:01:30]} 41. Kb5 {[%clk 0:00:14]}  Kg7 {[%clk 0:01:31]} 42. Kc6 {[%clk 0:00:14]}  f6 {[%clk 0:01:31]} 43. Kb7 {[%clk 0:00:15]}  Kh6 {[%clk 0:01:31]} 44. a7 {[%clk 0:00:16]}  Bxa7 {[%clk 0:01:31]} 45. Kxa7 {[%clk 0:00:17]}  f5 {[%clk 0:01:30]} 46. Kb6 {[%clk 0:00:17]}  h4 {[%clk 0:01:30]} 47. gxh4 {[%clk 0:00:16]}  g5 {[%clk 0:01:30]} 48. hxg5+ {[%clk 0:00:16]}  Kxg5 {[%clk 0:01:31]} 49. Kc5 {[%clk 0:00:17]}  Kf4 {[%clk 0:01:32]} 50. Bc6 {[%clk 0:00:16]}  Ke3 {[%clk 0:01:33]} 51. Bb7 {[%clk 0:00:17]}  f4 {[%clk 0:01:33]} 52. Bc6 {[%clk 0:00:17]}  f3 {[%clk 0:01:34]} 53. Bxf3 {[%clk 0:00:18]} 1/2-1/2


[Site "https://www.chess.com"]

[Event "Titled Tuesday Blitz September 21 2021"]
[White "Szpar, Milosz"]
[Black "Zubov, Alexander"]
[WhiteFideId "1184989"]
[BlackFideId "14109409"]
[WhiteElo "2282"]
[BlackElo "2740"]
[Result "1/2-1/2"]
[Round "08"]
[TimeControl "180+1"]
[Date "2021.09.21"]
[WhiteClock "0:00:04"]
[BlackClock "0:00:38"]

1. e4 {[%clk 0:00:49]}  c5 {[%clk 0:02:53]} 2. Nf3 {[%clk 0:00:49]}  d6 {[%clk 0:02:52]} 3. d4 {[%clk 0:00:48]}  cxd4 {[%clk 0:02:53]} 4. Qxd4 {[%clk 0:00:49]}  a6 {[%clk 0:02:52]} 5. c4 {[%clk 0:00:48]}  Nc6 {[%clk 0:02:51]} 6. Qe3 {[%clk 0:00:44]}  Bg4 {[%clk 0:02:50]} 7. Be2 {[%clk 0:00:35]}  g6 {[%clk 0:02:44]} 8. O-O {[%clk 0:00:33]}  Bg7 {[%clk 0:02:43]} 9. Nc3 {[%clk 0:00:33]}  Bxf3 {[%clk 0:02:34]} 10. Bxf3 {[%clk 0:00:33]}  e5 {[%clk 0:02:28]} 11. Bd1 {[%clk 0:00:29]}  Nge7 {[%clk 0:02:27]} 12. Ba4 {[%clk 0:00:29]}  O-O {[%clk 0:02:27]} 13. Bxc6 {[%clk 0:00:29]}  Nxc6 {[%clk 0:02:21]} 14. b3 {[%clk 0:00:28]}  Nd4 {[%clk 0:02:21]} 15. Qd3 {[%clk 0:00:24]}  b5 {[%clk 0:01:27]} 16. cxb5 {[%clk 0:00:22]}  Rc8 {[%clk 0:01:24]} 17. Bd2 {[%clk 0:00:20]}  axb5 {[%clk 0:01:23]} 18. Nxb5 {[%clk 0:00:21]}  d5 {[%clk 0:01:23]} 19. Nxd4 {[%clk 0:00:20]}  dxe4 {[%clk 0:01:21]} 20. Qxe4 {[%clk 0:00:20]}  exd4 {[%clk 0:01:21]} 21. Qd3 {[%clk 0:00:20]}  Qd5 {[%clk 0:01:21]} 22. Rac1 {[%clk 0:00:20]}  Ra8 {[%clk 0:01:21]} 23. a4 {[%clk 0:00:20]}  Rfb8 {[%clk 0:01:21]} 24. Rc4 {[%clk 0:00:21]}  h5 {[%clk 0:01:20]} 25. Rfc1 {[%clk 0:00:21]}  h4 {[%clk 0:01:20]} 26. a5 {[%clk 0:00:21]}  Be5 {[%clk 0:01:15]} 27. b4 {[%clk 0:00:20]}  Qd6 {[%clk 0:01:13]} 28. h3 {[%clk 0:00:19]}  Kg7 {[%clk 0:01:09]} 29. Rc6 {[%clk 0:00:18]}  Qd7 {[%clk 0:01:07]} 30. b5 {[%clk 0:00:17]}  Re8 {[%clk 0:01:00]} 31. b6 {[%clk 0:00:17]}  Re6 {[%clk 0:01:00]} 32. Rxe6 {[%clk 0:00:12]}  Qxe6 {[%clk 0:01:00]} 33. Rb1 {[%clk 0:00:08]}  Qa2 {[%clk 0:00:57]} 34. b7 {[%clk 0:00:07]}  Rb8 {[%clk 0:00:58]} 35. a6 {[%clk 0:00:07]}  Re8 {[%clk 0:00:48]} 36. Be1 {[%clk 0:00:05]}  Bf6 {[%clk 0:00:47]} 37. Kf1 {[%clk 0:00:05]}  Be5 {[%clk 0:00:47]} 38. Qb3 {[%clk 0:00:04]}  Qxa6+ {[%clk 0:00:46]} 39. Qb5 {[%clk 0:00:05]}  Qxb5+ {[%clk 0:00:42]} 40. Rxb5 {[%clk 0:00:05]}  f6 {[%clk 0:00:42]} 41. Bb4 {[%clk 0:00:04]}  Rb8 {[%clk 0:00:41]} 42. Bc5 {[%clk 0:00:02]}  d3 {[%clk 0:00:38]} 43. Ba7 {[%clk 0:00:02]}  Rd8 {[%clk 0:00:38]} 44. b8=Q {[%clk 0:00:02]}  Bxb8 {[%clk 0:00:37]} 45. Rxb8 {[%clk 0:00:03]}  Rd7 {[%clk 0:00:38]} 46. Be3 {[%clk 0:00:03]}  d2 {[%clk 0:00:38]} 47. Bxd2 {[%clk 0:00:03]}  Rxd2 {[%clk 0:00:38]} 48. Rb7+ {[%clk 0:00:04]} 1/2-1/2


[Site "https://www.chess.com"]

[Event "Titled Tuesday Blitz September 21 2021"]
[White "Tasev, Dejan"]
[Black "FGHSMN"]
[WhiteFideId "936618"]
[WhiteElo "2253"]
[BlackElo "2743"]
[Result "0-1"]
[Round "08"]
[TimeControl "180+1"]
[Date "2021.09.21"]
[WhiteClock "0:00:09"]
[BlackClock "0:01:59"]

1. e4 {[%clk 0:00:42]}  c5 {[%clk 0:02:58]} 2. Nf3 {[%clk 0:00:42]}  e6 {[%clk 0:02:57]} 3. c4 {[%clk 0:00:40]}  a6 {[%clk 0:02:57]} 4. d4 {[%clk 0:00:40]}  cxd4 {[%clk 0:02:58]} 5. Nxd4 {[%clk 0:00:40]}  Qc7 {[%clk 0:02:58]} 6. Nc3 {[%clk 0:00:40]}  Nf6 {[%clk 0:02:58]} 7. Bd3 {[%clk 0:00:39]}  b6 {[%clk 0:02:56]} 8. O-O {[%clk 0:00:38]}  Bb7 {[%clk 0:02:56]} 9. Qe2 {[%clk 0:00:36]}  d6 {[%clk 0:02:55]} 10. f4 {[%clk 0:00:31]}  Be7 {[%clk 0:02:49]} 11. Kh1 {[%clk 0:00:30]}  Nbd7 {[%clk 0:02:47]} 12. Be3 {[%clk 0:00:30]}  O-O {[%clk 0:02:44]} 13. Bg1 {[%clk 0:00:28]}  Rac8 {[%clk 0:02:42]} 14. Rac1 {[%clk 0:00:26]}  Rfe8 {[%clk 0:02:39]} 15. Rf3 {[%clk 0:00:20]}  Nc5 {[%clk 0:02:35]} 16. b3 {[%clk 0:00:18]}  Nxd3 {[%clk 0:02:33]} 17. Qxd3 {[%clk 0:00:17]}  d5 {[%clk 0:02:29]} 18. cxd5 {[%clk 0:00:15]}  exd5 {[%clk 0:02:30]} 19. e5 {[%clk 0:00:15]}  Ne4 {[%clk 0:02:28]} 20. Nce2 {[%clk 0:00:15]}  Qd7 {[%clk 0:02:20]} 21. Rcf1 {[%clk 0:00:13]}  Bc5 {[%clk 0:02:17]} 22. f5 {[%clk 0:00:12]}  Rxe5 {[%clk 0:02:16]} 23. f6 {[%clk 0:00:13]}  g6 {[%clk 0:02:15]} 24. Qe3 {[%clk 0:00:11]}  Rce8 {[%clk 0:02:05]} 25. Qf4 {[%clk 0:00:09]}  Rh5 {[%clk 0:02:01]} 26. Ng3 {[%clk 0:00:09]}  Bd6 {[%clk 0:01:59]} 27. Nxh5 {[%clk 0:00:09]}  Bxf4 {[%clk 0:01:59]} 28. Nxf4 {[%clk 0:00:09]}  Nd2 {[%clk 0:01:59]} 0-1


[Site "https://www.chess.com"]

[Event "Titled Tuesday Blitz September 21 2021"]
[White "Vogel, Roven"]
[Black "Shipov, Sergei"]
[WhiteFideId "12908088"]
[BlackFideId "4113624"]
[WhiteElo "2516"]
[BlackElo "2821"]
[Result "1/2-1/2"]
[Round "08"]
[TimeControl "180+1"]
[Date "2021.09.21"]
[WhiteClock "0:00:03"]
[BlackClock "0:00:52"]

1. d4 {[%clk 0:02:01]}  d5 {[%clk 0:02:28]} 2. c4 {[%clk 0:01:11]}  dxc4 {[%clk 0:02:21]} 3. e3 {[%clk 0:01:09]}  e6 {[%clk 0:02:16]} 4. Bxc4 {[%clk 0:01:08]}  c5 {[%clk 0:02:16]} 5. Nf3 {[%clk 0:01:08]}  Nf6 {[%clk 0:02:17]} 6. O-O {[%clk 0:01:08]}  a6 {[%clk 0:02:17]} 7. dxc5 {[%clk 0:01:07]}  Qxd1 {[%clk 0:02:16]} 8. Rxd1 {[%clk 0:01:06]}  Bxc5 {[%clk 0:02:17]} 9. b3 {[%clk 0:01:05]}  O-O {[%clk 0:02:13]} 10. Bb2 {[%clk 0:01:04]}  Nbd7 {[%clk 0:02:09]} 11. Nc3 {[%clk 0:00:59]}  b5 {[%clk 0:02:09]} 12. Bd3 {[%clk 0:00:59]}  Bb7 {[%clk 0:02:09]} 13. Ng5 {[%clk 0:00:54]}  Be7 {[%clk 0:02:07]} 14. Nge4 {[%clk 0:00:47]}  Rfc8 {[%clk 0:02:06]} 15. Rac1 {[%clk 0:00:44]}  h6 {[%clk 0:02:06]} 16. h3 {[%clk 0:00:41]}  Kf8 {[%clk 0:02:03]} 17. Kf1 {[%clk 0:00:40]}  Ke8 {[%clk 0:02:03]} 18. Bb1 {[%clk 0:00:39]}  Rc7 {[%clk 0:01:49]} 19. Nd6+ {[%clk 0:00:34]}  Bxd6 {[%clk 0:01:49]} 20. Rxd6 {[%clk 0:00:35]}  Rac8 {[%clk 0:01:48]} 21. Ne2 {[%clk 0:00:34]}  Rxc1+ {[%clk 0:01:44]} 22. Nxc1 {[%clk 0:00:35]}  Be4 {[%clk 0:01:33]} 23. Bxe4 {[%clk 0:00:28]}  Nxe4 {[%clk 0:01:34]} 24. Rxa6 {[%clk 0:00:28]}  Rc2 {[%clk 0:01:33]} 25. Nd3 {[%clk 0:00:28]}  Nxf2 {[%clk 0:01:27]} 26. Ra8+ {[%clk 0:00:26]}  Ke7 {[%clk 0:01:26]} 27. Ba3+ {[%clk 0:00:26]}  Kf6 {[%clk 0:01:23]} 28. Nxf2 {[%clk 0:00:26]}  Ne5 {[%clk 0:01:23]} 29. Ra7 {[%clk 0:00:20]}  Kg6 {[%clk 0:01:20]} 30. Bd6 {[%clk 0:00:20]}  Nc6 {[%clk 0:01:16]} 31. Rc7 {[%clk 0:00:19]}  Rc1+ {[%clk 0:01:16]} 32. Ke2 {[%clk 0:00:17]}  Rc2+ {[%clk 0:01:16]} 33. Kd3 {[%clk 0:00:15]}  Nb4+ {[%clk 0:01:13]} 34. Ke4 {[%clk 0:00:15]}  Rxf2 {[%clk 0:01:12]} 35. Bxb4 {[%clk 0:00:14]}  Rxa2 {[%clk 0:01:11]} 36. g4 {[%clk 0:00:13]}  Rh2 {[%clk 0:01:11]} 37. Rb7 {[%clk 0:00:12]}  Rxh3 {[%clk 0:01:11]} 38. Rxb5 {[%clk 0:00:12]}  Rh4 {[%clk 0:01:11]} 39. Kf3 {[%clk 0:00:12]}  f5 {[%clk 0:01:12]} 40. gxf5+ {[%clk 0:00:12]}  exf5 {[%clk 0:01:12]} 41. Rb6+ {[%clk 0:00:13]}  Kh5 {[%clk 0:01:11]} 42. Rb7 {[%clk 0:00:14]}  g5 {[%clk 0:01:10]} 43. Bf8 {[%clk 0:00:12]}  Rh3+ {[%clk 0:01:10]} 44. Kf2 {[%clk 0:00:12]}  Kg4 {[%clk 0:01:10]} 45. Rb4+ {[%clk 0:00:10]}  f4 {[%clk 0:01:11]} 46. exf4 {[%clk 0:00:10]}  gxf4 {[%clk 0:01:11]} 47. Bd6 {[%clk 0:00:09]}  Rf3+ {[%clk 0:01:11]} 48. Ke2 {[%clk 0:00:08]}  h5 {[%clk 0:01:11]} 49. Rb8 {[%clk 0:00:06]}  Re3+ {[%clk 0:01:09]} 50. Kf2 {[%clk 0:00:06]}  Rd3 {[%clk 0:01:09]} 51. Rg8+ {[%clk 0:00:06]}  Kf5 {[%clk 0:01:09]} 52. Rf8+ {[%clk 0:00:06]}  Ke6 {[%clk 0:01:09]} 53. Bxf4 {[%clk 0:00:07]}  Rxb3 {[%clk 0:01:09]} 54. Be3 {[%clk 0:00:06]}  Rb5 {[%clk 0:01:09]} 55. Rh8 {[%clk 0:00:06]}  Kf7 {[%clk 0:01:08]} 56. Kf3 {[%clk 0:00:05]}  Kg6 {[%clk 0:01:07]} 57. Rg8+ {[%clk 0:00:05]}  Kh7 {[%clk 0:01:07]} 58. Rg1 {[%clk 0:00:06]}  Rb4 {[%clk 0:01:06]} 59. Bf4 {[%clk 0:00:05]}  Rc4 {[%clk 0:01:06]} 60. Rh1 {[%clk 0:00:04]}  Kg6 {[%clk 0:01:06]} 61. Rg1+ {[%clk 0:00:05]}  Kh7 {[%clk 0:01:06]} 62. Rg5 {[%clk 0:00:05]}  Rc3+ {[%clk 0:01:03]} 63. Ke4 {[%clk 0:00:05]}  Rc4+ {[%clk 0:01:02]} 64. Kf5 {[%clk 0:00:05]}  Rc5+ {[%clk 0:01:01]} 65. Be5 {[%clk 0:00:05]}  Rc6 {[%clk 0:00:52]} 66. Rxh5+ {[%clk 0:00:04]}  Rh6 {[%clk 0:00:52]} 67. Rg5 {[%clk 0:00:05]}  Rg6 {[%clk 0:00:52]} 68. Rh5+ {[%clk 0:00:03]}  Rh6 {[%clk 0:00:52]} 69. Rg5 {[%clk 0:00:03]}  Rg6 {[%clk 0:00:52]} 70. Rxg6 {[%clk 0:00:03]} 1/2-1/2


[Site "https://www.chess.com"]

[Event "Titled Tuesday Blitz September 21 2021"]
[White "Warmerdam, Max"]
[Black "Skatchkov, Valery"]
[WhiteFideId "1048104"]
[BlackFideId "24195812"]
[WhiteElo "2537"]
[BlackElo "2195"]
[Result "1-0"]
[Round "08"]
[TimeControl "180+1"]
[Date "2021.09.21"]
[WhiteClock "0:01:06"]
[BlackClock "0:00:01"]

1. e4 {[%clk 0:03:00]}  e5 {[%clk 0:02:58]} 2. Nf3 {[%clk 0:02:51]}  d5 {[%clk 0:02:59]} 3. exd5 {[%clk 0:02:50]}  e4 {[%clk 0:03:00]} 4. Qe2 {[%clk 0:02:51]}  Nf6 {[%clk 0:03:00]} 5. d3 {[%clk 0:02:51]}  Qxd5 {[%clk 0:03:00]} 6. Nc3 {[%clk 0:02:42]}  Bb4 {[%clk 0:02:59]} 7. Bd2 {[%clk 0:02:35]}  Bxc3 {[%clk 0:03:00]} 8. Bxc3 {[%clk 0:02:36]}  O-O {[%clk 0:03:00]} 9. dxe4 {[%clk 0:02:32]}  Nxe4 {[%clk 0:03:01]} 10. Rd1 {[%clk 0:02:31]}  Qe6 {[%clk 0:03:01]} 11. Nd4 {[%clk 0:02:28]}  Qg6 {[%clk 0:03:01]} 12. Nb5 {[%clk 0:02:08]}  Na6 {[%clk 0:02:06]} 13. Bd4 {[%clk 0:01:49]}  Re8 {[%clk 0:01:52]} 14. Be3 {[%clk 0:01:43]}  Bg4 {[%clk 0:01:21]} 15. f3 {[%clk 0:01:42]}  Nf6 {[%clk 0:01:21]} 16. Kf2 {[%clk 0:01:37]}  Bf5 {[%clk 0:01:13]} 17. Nd4 {[%clk 0:01:34]}  Nd5 {[%clk 0:01:13]} 18. Nxf5 {[%clk 0:01:32]}  Qxf5 {[%clk 0:01:14]} 19. Rxd5 {[%clk 0:01:27]}  Qxd5 {[%clk 0:01:15]} 20. Qc4 {[%clk 0:01:27]}  Qe5 {[%clk 0:01:12]} 21. Qc3 {[%clk 0:01:27]}  Qxc3 {[%clk 0:01:10]} 22. bxc3 {[%clk 0:01:28]}  Re5 {[%clk 0:01:04]} 23. Bc4 {[%clk 0:01:25]}  Rae8 {[%clk 0:01:01]} 24. Bd4 {[%clk 0:01:25]}  Ra5 {[%clk 0:00:55]} 25. Rb1 {[%clk 0:01:25]}  b6 {[%clk 0:00:55]} 26. Rb5 {[%clk 0:01:20]}  Ra4 {[%clk 0:00:38]} 27. Bb3 {[%clk 0:01:18]}  Ra3 {[%clk 0:00:35]} 28. Rd5 {[%clk 0:01:18]}  c5 {[%clk 0:00:33]} 29. Be5 {[%clk 0:01:12]}  b5 {[%clk 0:00:25]} 30. c4 {[%clk 0:01:09]}  bxc4 {[%clk 0:00:24]} 31. Bxc4 {[%clk 0:01:10]}  Nb4 {[%clk 0:00:11]} 32. Rd7 {[%clk 0:01:10]}  Kh8 {[%clk 0:00:02]} 33. Bxf7 {[%clk 0:01:08]}  Rf8 {[%clk 0:00:01]} 34. Bb3 {[%clk 0:01:06]} 1-0


[Site "https://www.chess.com"]